Workbook

Sheet Pregled žurke
B3: Pregled žurke
B6: DOGAĐAJ | D6: REZIME GOSTIJU | H6: ="GOSTI KOJI JOŠ NISU ODGOVORILI NA POZIV: "&OutstandingRSVPs -> GOSTI KOJI JOŠ NISU ODGOVORILI NA POZIV: 2
B7: Bakin 75. rođendan | D7: PREGLED ODGOVORA O UČEŠĆU | F7: TROŠAK PO GOSTU | H7: IZNOS BUDŽETA
D8: Potvrđeno gostiju | E8: Ukupno potvrđeno | F8: Hrana | G8: Ostalo | H8: Ukupno
B9: DATUM | D9: Odrasli | E9: =SUMIF(GuestTable[DOLAZI?],"=Da",GuestTable[ODRASLI]) -> 26 | F9: =FoodTable[[#Totals],[TROŠAK PO ODRASLOM]] -> 12.69 Din. | G9: =EssentialCostPerGuest -> 18.70 Din. | H9: =(AttendeeSummary[[#This Row],[Hrana]]+AttendeeSummary[[#This Row],[Ostalo]])*AdultTotal -> 816.03 Din.
B10: 2011-06-14 | D10: Deca | E10: =SUMIF(GuestTable[DOLAZI?],"=Da",GuestTable[DECA]) -> 20 | F10: =FoodTable[[#Totals],[TROŠAK PO DETETU]] -> 7.25 Din. | G10: =EssentialCostPerGuest -> 18.70 Din. | H10: =(AttendeeSummary[[#This Row],[Hrana]]+AttendeeSummary[[#This Row],[Ostalo]])*ChildrenTotal -> 518.97 Din.
D11: Ukupno | E11: =SUBTOTAL(109,AttendeeSummary[Ukupno potvrđeno]) -> 46 | F11: ="prosek "&TEXT(SUBTOTAL(101,AttendeeSummary[Hrana]),"#.##0,00 Din.") -> prosek 9,97 Din. | G11: ="prosek "&TEXT(SUBTOTAL(101,AttendeeSummary[Ostalo]),"#.##0,00 Din.") -> prosek 18,70 Din. | H11: =SUBTOTAL(109,AttendeeSummary[Ukupno]) -> 1,335.00 Din.
B12: VREME
B13: 14:00 do 16:00
B15: LOKACIJA | D15: REZIME BUDŽETA
B16: Teta Kaćina kuća | D16: STAVKA | E16: BROJ | F16: IZNOS BUDŽETA | G16: UKUPAN TROŠAK | H16: RAZLIKA
D17: Hrana i piće | E17: =COUNTA(FoodTable[STAVKA HRANE ILI PIĆA]) -> 18 | F17: 500.00 Din. | G17: =FoodTable[[#Totals],[UKUPAN TROŠAK]] -> 475.00 Din. | H17: =BudgetOverview[[#This Row],[IZNOS BUDŽETA]]-BudgetOverview[[#This Row],[UKUPAN TROŠAK]] -> 25.00 Din.
D18: =Table1Header -> Oprema i zalihe | E18: =COUNTA(Table1Budget[Oprema i zalihe]) -> 7 | F18: 400.00 Din. | G18: =Table1Budget[[#Totals],[Troškovi]] -> 400.00 Din. | H18: =BudgetOverview[[#This Row],[IZNOS BUDŽETA]]-BudgetOverview[[#This Row],[UKUPAN TROŠAK]] -> 0.00 Din.
D19: =Table2Header -> Dekoracija | E19: =COUNTA(Table2Budget[Dekoracija]) -> 4 | F19: 150.00 Din. | G19: =Table2Budget[[#Totals],[Troškovi]] -> 175.00 Din. | H19: =BudgetOverview[[#This Row],[IZNOS BUDŽETA]]-BudgetOverview[[#This Row],[UKUPAN TROŠAK]] -> -25.00 Din.
D20: =Table3Header -> Ostalo | E20: =COUNTA(Table3Budget[Ostalo]) -> 4 | F20: 300.00 Din. | G20: =Table3Budget[[#Totals],[Troškovi]] -> 285.00 Din. | H20: =BudgetOverview[[#This Row],[IZNOS BUDŽETA]]-BudgetOverview[[#This Row],[UKUPAN TROŠAK]] -> 15.00 Din.
D21: Ukupno | E21: =SUBTOTAL(109,BudgetOverview[BROJ]) -> 33 | F21: =SUBTOTAL(109,BudgetOverview[IZNOS BUDŽETA]) -> 1,350.00 Din. | G21: =SUBTOTAL(109,BudgetOverview[UKUPAN TROŠAK]) -> 1,335.00 Din. | H21: =SUBTOTAL(109,BudgetOverview[RAZLIKA]) -> 15.00 Din.

Sheet Spisak gostiju
B3: Spisak gostiju
B7: IME | C7: ADRESA | D7: GRAD | E7: DRŽAVA | F7: POŠTANSKI BROJ | G7: TELEFON | H7: E-ADRESA | I7: DOLAZI? | J7: DECA | K7: ODRASLI | L7: UKUPNO
B8: Porodica 1 | C8: Adresa 1 | D8: Grad 1 | E8: Država 1 | F8: Poštanski broj 1 | G8: Telefon 1 | H8: E-pošta1 | I8: Ne | J8: 2 | K8: 2 | L8: =SUM(GuestTable[[#This Row],[DECA]:[ODRASLI]]) -> 4
B9: Porodica 2 | C9: Adresa 2 | D9: Grad 2 | E9: Država 2 | F9: Poštanski broj 2 | G9: Telefon 2 | H9: E-pošta2 | I9: Da | J9: 1 | K9: 1 | L9: =SUM(GuestTable[[#This Row],[DECA]:[ODRASLI]]) -> 2
B10: Porodica 3 | C10: Adresa 3 | D10: Grad 3 | E10: Država 3 | F10: Poštanski broj 3 | G10: Telefon 3 | H10: E-pošta3 | I10: Da | J10: 3 | K10: 3 | L10: =SUM(GuestTable[[#This Row],[DECA]:[ODRASLI]]) -> 6
B11: Porodica 4 | C11: Adresa 4 | D11: Grad 4 | E11: Država 4 | F11: Poštanski broj 4 | G11: Telefon 4 | H11: E-pošta4 | K11: 2 | L11: =SUM(GuestTable[[#This Row],[DECA]:[ODRASLI]]) -> 2
B12: Porodica 5 | C12: Adresa 5 | D12: Grad 5 | E12: Država 5 | F12: Poštanski broj 5 | G12: Telefon 5 | H12: E-pošta5 | I12: Da | J12: 4 | K12: 3 | L12: =SUM(GuestTable[[#This Row],[DECA]:[ODRASLI]]) -> 7
B13: Porodica 6 | C13: Adresa 6 | D13: Grad 6 | E13: Država 6 | F13: Poštanski broj 6 | G13: Telefon 6 | H13: E-pošta6 | I13: Da | J13: 2 | K13: 2 | L13: =SUM(GuestTable[[#This Row],[DECA]:[ODRASLI]]) -> 4
B14: Porodica 7 | C14: Adresa 7 | D14: Grad 7 | E14: Država 7 | F14: Poštanski broj 7 | G14: Telefon 7 | H14: E-pošta7 | I14: Da | J14: 1 | K14: 4 | L14: =SUM(GuestTable[[#This Row],[DECA]:[ODRASLI]]) -> 5
B15: Porodica 8 | C15: Adresa 8 | D15: Grad 8 | E15: Država 8 | F15: Poštanski broj 8 | G15: Telefon 8 | H15: E-pošta8 | I15: Ne | J15: 5 | K15: 3 | L15: =SUM(GuestTable[[#This Row],[DECA]:[ODRASLI]]) -> 8
B16: Porodica 9 | C16: Adresa 9 | D16: Grad 9 | E16: Država 9 | F16: Poštanski broj 9 | G16: Telefon 9 | H16: E-pošta‚9 | I16: Da | J16: 3 | K16: 2 | L16: =SUM(GuestTable[[#This Row],[DECA]:[ODRASLI]]) -> 5
B17: Porodica 10 | C17: Adresa 10 | D17: Grad 10 | E17: Država 10 | F17: Poštanski broj 10 | G17: Telefon 10 | H17: E-pošta10 | I17: Da | K17: 4 | L17: =SUM(GuestTable[[#This Row],[DECA]:[ODRASLI]]) -> 4
B18: Porodica 11 | C18: Adresa 11 | D18: Grad 11 | E18: Država 11 | F18: Poštanski broj 11 | G18: Telefon 11 | H18: E-pošta11 | I18: Da | J18: 3 | K18: 5 | L18: =SUM(GuestTable[[#This Row],[DECA]:[ODRASLI]]) -> 8
B19: Porodica 12 | C19: Adresa 12 | D19: Grad 12 | E19: Država 12 | F19: Poštanski broj 12 | G19: Telefon 12 | H19: E-pošta12 | I19: Ne | J19: 2 | K19: 3 | L19: =SUM(GuestTable[[#This Row],[DECA]:[ODRASLI]]) -> 5
B20: Porodica 13 | C20: Adresa 13 | D20: Grad 13 | E20: Država 13 | F20: Poštanski broj 13 | G20: Telefon 13 | H20: E-pošta13 | I20: Da | J20: 3 | K20: 2 | L20: =SUM(GuestTable[[#This Row],[DECA]:[ODRASLI]]) -> 5
B21: Porodica 14 | C21: Adresa 14 | D21: Grad 14 | E21: Država 14 | F21: Poštanski broj 14 | G21: Telefon 14 | H21: E-pošta14 | I21: Ne | K21: 1 | L21: =SUM(GuestTable[[#This Row],[DECA]:[ODRASLI]]) -> 1
B22: Porodica 15 | C22: Adresa 15 | D22: Grad 15 | E22: Država 15 | F22: Poštanski broj 15 | G22: Telefon 15 | H22: E-pošta1‚5 | K22: 2 | L22: =SUM(GuestTable[[#This Row],[DECA]:[ODRASLI]]) -> 2

Sheet Hrana i piće
B3: Hrana i piće
B5: Unesite trošak i procenjene porcije da biste automatski izračunali ukupan broj komada i i trošak po porciji na odnosu ukupnog broja učesnika
B6: STAVKA HRANE ILI PIĆA | C6: UKUPAN TROŠAK | D6: PORCIJA ZA DECU | E6: PORCIJA ZA ODRASLE | F6: UKUPNO PORCIJA | G6: TROŠAK PO PORCIJI | H6: TROŠAK PO DETETU | I6: TROŠAK PO ODRASLOM | J6: BELEŠKE
B7: Soda | C7: 15.00 Din. | D7: 0.5 | E7: 2 | F7: =(FoodTable[[#This Row],[PORCIJA ZA DECU]]*ChildrenTotal)+(FoodTable[[#This Row],[PORCIJA ZA ODRASLE]]*AdultTotal) -> 62 | G7: =IFERROR(FoodTable[[#This Row],[UKUPAN TROŠAK]]/FoodTable[[#This Row],[UKUPNO PORCIJA]],"") -> 0.24 Din. | H7: =IFERROR(FoodTable[[#This Row],[TROŠAK PO PORCIJI]]*FoodTable[[#This Row],[PORCIJA ZA DECU]],"") -> 0.12 Din. | I7: =IFERROR(FoodTable[[#This Row],[TROŠAK PO PORCIJI]]*FoodTable[[#This Row],[PORCIJA ZA ODRASLE]],"") -> 0.48 Din. | J7: 2 litarske boce
B8: Paketi soka | C8: 15.00 Din. | D8: 2 | E8: 0 | F8: =(FoodTable[[#This Row],[PORCIJA ZA DECU]]*ChildrenTotal)+(FoodTable[[#This Row],[PORCIJA ZA ODRASLE]]*AdultTotal) -> 40 | G8: =IFERROR(FoodTable[[#This Row],[UKUPAN TROŠAK]]/FoodTable[[#This Row],[UKUPNO PORCIJA]],"") -> 0.38 Din. | H8: =IFERROR(FoodTable[[#This Row],[TROŠAK PO PORCIJI]]*FoodTable[[#This Row],[PORCIJA ZA DECU]],"") -> 0.75 Din. | I8: =IFERROR(FoodTable[[#This Row],[TROŠAK PO PORCIJI]]*FoodTable[[#This Row],[PORCIJA ZA ODRASLE]],"") -> 0.00 Din. | J8: Jabuka i belo grožđe
B9: Vino | C9: 50.00 Din. | D9: 0 | E9: 2 | F9: =(FoodTable[[#This Row],[PORCIJA ZA DECU]]*ChildrenTotal)+(FoodTable[[#This Row],[PORCIJA ZA ODRASLE]]*AdultTotal) -> 52 | G9: =IFERROR(FoodTable[[#This Row],[UKUPAN TROŠAK]]/FoodTable[[#This Row],[UKUPNO PORCIJA]],"") -> 0.96 Din. | H9: =IFERROR(FoodTable[[#This Row],[TROŠAK PO PORCIJI]]*FoodTable[[#This Row],[PORCIJA ZA DECU]],"") -> 0.00 Din. | I9: =IFERROR(FoodTable[[#This Row],[TROŠAK PO PORCIJI]]*FoodTable[[#This Row],[PORCIJA ZA ODRASLE]],"") -> 1.92 Din.
B10: Torta | C10: 75.00 Din. | D10: 1 | E10: 1 | F10: =(FoodTable[[#This Row],[PORCIJA ZA DECU]]*ChildrenTotal)+(FoodTable[[#This Row],[PORCIJA ZA ODRASLE]]*AdultTotal) -> 46 | G10: =IFERROR(FoodTable[[#This Row],[UKUPAN TROŠAK]]/FoodTable[[#This Row],[UKUPNO PORCIJA]],"") -> 1.63 Din. | H10: =IFERROR(FoodTable[[#This Row],[TROŠAK PO PORCIJI]]*FoodTable[[#This Row],[PORCIJA ZA DECU]],"") -> 1.63 Din. | I10: =IFERROR(FoodTable[[#This Row],[TROŠAK PO PORCIJI]]*FoodTable[[#This Row],[PORCIJA ZA ODRASLE]],"") -> 1.63 Din. | J10: Naručiti u lokalnoj pekari
B11: Sladoled | C11: 20.00 Din. | D11: 1 | E11: 1.5 | F11: =(FoodTable[[#This Row],[PORCIJA ZA DECU]]*ChildrenTotal)+(FoodTable[[#This Row],[PORCIJA ZA ODRASLE]]*AdultTotal) -> 59 | G11: =IFERROR(FoodTable[[#This Row],[UKUPAN TROŠAK]]/FoodTable[[#This Row],[UKUPNO PORCIJA]],"") -> 0.34 Din. | H11: =IFERROR(FoodTable[[#This Row],[TROŠAK PO PORCIJI]]*FoodTable[[#This Row],[PORCIJA ZA DECU]],"") -> 0.34 Din. | I11: =IFERROR(FoodTable[[#This Row],[TROŠAK PO PORCIJI]]*FoodTable[[#This Row],[PORCIJA ZA ODRASLE]],"") -> 0.51 Din.
B12: Puding | C12: 15.00 Din. | D12: 1 | E12: 0 | F12: =(FoodTable[[#This Row],[PORCIJA ZA DECU]]*ChildrenTotal)+(FoodTable[[#This Row],[PORCIJA ZA ODRASLE]]*AdultTotal) -> 20 | G12: =IFERROR(FoodTable[[#This Row],[UKUPAN TROŠAK]]/FoodTable[[#This Row],[UKUPNO PORCIJA]],"") -> 0.75 Din. | H12: =IFERROR(FoodTable[[#This Row],[TROŠAK PO PORCIJI]]*FoodTable[[#This Row],[PORCIJA ZA DECU]],"") -> 0.75 Din. | I12: =IFERROR(FoodTable[[#This Row],[TROŠAK PO PORCIJI]]*FoodTable[[#This Row],[PORCIJA ZA ODRASLE]],"") -> 0.00 Din. | J12: Kupiti u pakovanju: vanila i čokolada
B13: Punjene pečurke | C13: 32.00 Din. | D13: 1 | E13: 2 | F13: =(FoodTable[[#This Row],[PORCIJA ZA DECU]]*ChildrenTotal)+(FoodTable[[#This Row],[PORCIJA ZA ODRASLE]]*AdultTotal) -> 72 | G13: =IFERROR(FoodTable[[#This Row],[UKUPAN TROŠAK]]/FoodTable[[#This Row],[UKUPNO PORCIJA]],"") -> 0.44 Din. | H13: =IFERROR(FoodTable[[#This Row],[TROŠAK PO PORCIJI]]*FoodTable[[#This Row],[PORCIJA ZA DECU]],"") -> 0.44 Din. | I13: =IFERROR(FoodTable[[#This Row],[TROŠAK PO PORCIJI]]*FoodTable[[#This Row],[PORCIJA ZA ODRASLE]],"") -> 0.89 Din. | J13: Pečurke punjene krem sirom i kobasicom
B14: Brusketi | C14: 22.00 Din. | D14: 0 | E14: 3 | F14: =(FoodTable[[#This Row],[PORCIJA ZA DECU]]*ChildrenTotal)+(FoodTable[[#This Row],[PORCIJA ZA ODRASLE]]*AdultTotal) -> 78 | G14: =IFERROR(FoodTable[[#This Row],[UKUPAN TROŠAK]]/FoodTable[[#This Row],[UKUPNO PORCIJA]],"") -> 0.28 Din. | H14: =IFERROR(FoodTable[[#This Row],[TROŠAK PO PORCIJI]]*FoodTable[[#This Row],[PORCIJA ZA DECU]],"") -> 0.00 Din. | I14: =IFERROR(FoodTable[[#This Row],[TROŠAK PO PORCIJI]]*FoodTable[[#This Row],[PORCIJA ZA ODRASLE]],"") -> 0.85 Din. | J14: Paradajz i bosiljak
B15: Dimljeni losos | C15: 50.00 Din. | D15: 1 | E15: 2 | F15: =(FoodTable[[#This Row],[PORCIJA ZA DECU]]*ChildrenTotal)+(FoodTable[[#This Row],[PORCIJA ZA ODRASLE]]*AdultTotal) -> 72 | G15: =IFERROR(FoodTable[[#This Row],[UKUPAN TROŠAK]]/FoodTable[[#This Row],[UKUPNO PORCIJA]],"") -> 0.69 Din. | H15: =IFERROR(FoodTable[[#This Row],[TROŠAK PO PORCIJI]]*FoodTable[[#This Row],[PORCIJA ZA DECU]],"") -> 0.69 Din. | I15: =IFERROR(FoodTable[[#This Row],[TROŠAK PO PORCIJI]]*FoodTable[[#This Row],[PORCIJA ZA ODRASLE]],"") -> 1.39 Din.
B16: Mini pecivo | C16: 20.00 Din. | D16: 1 | E16: 2 | F16: =(FoodTable[[#This Row],[PORCIJA ZA DECU]]*ChildrenTotal)+(FoodTable[[#This Row],[PORCIJA ZA ODRASLE]]*AdultTotal) -> 72 | G16: =IFERROR(FoodTable[[#This Row],[UKUPAN TROŠAK]]/FoodTable[[#This Row],[UKUPNO PORCIJA]],"") -> 0.28 Din. | H16: =IFERROR(FoodTable[[#This Row],[TROŠAK PO PORCIJI]]*FoodTable[[#This Row],[PORCIJA ZA DECU]],"") -> 0.28 Din. | I16: =IFERROR(FoodTable[[#This Row],[TROŠAK PO PORCIJI]]*FoodTable[[#This Row],[PORCIJA ZA ODRASLE]],"") -> 0.56 Din. | J16: 4 kese – aranžirano
B17: Krem sir | C17: 10.00 Din. | D17: 1 | E17: 2 | F17: =(FoodTable[[#This Row],[PORCIJA ZA DECU]]*ChildrenTotal)+(FoodTable[[#This Row],[PORCIJA ZA ODRASLE]]*AdultTotal) -> 72 | G17: =IFERROR(FoodTable[[#This Row],[UKUPAN TROŠAK]]/FoodTable[[#This Row],[UKUPNO PORCIJA]],"") -> 0.14 Din. | H17: =IFERROR(FoodTable[[#This Row],[TROŠAK PO PORCIJI]]*FoodTable[[#This Row],[PORCIJA ZA DECU]],"") -> 0.14 Din. | I17: =IFERROR(FoodTable[[#This Row],[TROŠAK PO PORCIJI]]*FoodTable[[#This Row],[PORCIJA ZA ODRASLE]],"") -> 0.28 Din. | J17: 2 velike tube
B18: Kapar | C18: 12.00 Din. | D18: 1 | E18: 2 | F18: =(FoodTable[[#This Row],[PORCIJA ZA DECU]]*ChildrenTotal)+(FoodTable[[#This Row],[PORCIJA ZA ODRASLE]]*AdultTotal) -> 72 | G18: =IFERROR(FoodTable[[#This Row],[UKUPAN TROŠAK]]/FoodTable[[#This Row],[UKUPNO PORCIJA]],"") -> 0.17 Din. | H18: =IFERROR(FoodTable[[#This Row],[TROŠAK PO PORCIJI]]*FoodTable[[#This Row],[PORCIJA ZA DECU]],"") -> 0.17 Din. | I18: =IFERROR(FoodTable[[#This Row],[TROŠAK PO PORCIJI]]*FoodTable[[#This Row],[PORCIJA ZA ODRASLE]],"") -> 0.33 Din. | J18: 3 tegle
B19: Pileća krilca | C19: 45.00 Din. | D19: 2 | E19: 4 | F19: =(FoodTable[[#This Row],[PORCIJA ZA DECU]]*ChildrenTotal)+(FoodTable[[#This Row],[PORCIJA ZA ODRASLE]]*AdultTotal) -> 144 | G19: =IFERROR(FoodTable[[#This Row],[UKUPAN TROŠAK]]/FoodTable[[#This Row],[UKUPNO PORCIJA]],"") -> 0.31 Din. | H19: =IFERROR(FoodTable[[#This Row],[TROŠAK PO PORCIJI]]*FoodTable[[#This Row],[PORCIJA ZA DECU]],"") -> 0.63 Din. | I19: =IFERROR(FoodTable[[#This Row],[TROŠAK PO PORCIJI]]*FoodTable[[#This Row],[PORCIJA ZA ODRASLE]],"") -> 1.25 Din. | J19: Kupiti u lokalnoj prodavnici piletine
B20: Humus | C20: 10.00 Din. | D20: 4 | E20: 6 | F20: =(FoodTable[[#This Row],[PORCIJA ZA DECU]]*ChildrenTotal)+(FoodTable[[#This Row],[PORCIJA ZA ODRASLE]]*AdultTotal) -> 236 | G20: =IFERROR(FoodTable[[#This Row],[UKUPAN TROŠAK]]/FoodTable[[#This Row],[UKUPNO PORCIJA]],"") -> 0.04 Din. | H20: =IFERROR(FoodTable[[#This Row],[TROŠAK PO PORCIJI]]*FoodTable[[#This Row],[PORCIJA ZA DECU]],"") -> 0.17 Din. | I20: =IFERROR(FoodTable[[#This Row],[TROŠAK PO PORCIJI]]*FoodTable[[#This Row],[PORCIJA ZA ODRASLE]],"") -> 0.25 Din. | J20: Napraviti veče uoči žurke
B21: Hrskava pita od parmezana | C21: 14.00 Din. | D21: 4 | E21: 6 | F21: =(FoodTable[[#This Row],[PORCIJA ZA DECU]]*ChildrenTotal)+(FoodTable[[#This Row],[PORCIJA ZA ODRASLE]]*AdultTotal) -> 236 | G21: =IFERROR(FoodTable[[#This Row],[UKUPAN TROŠAK]]/FoodTable[[#This Row],[UKUPNO PORCIJA]],"") -> 0.06 Din. | H21: =IFERROR(FoodTable[[#This Row],[TROŠAK PO PORCIJI]]*FoodTable[[#This Row],[PORCIJA ZA DECU]],"") -> 0.24 Din. | I21: =IFERROR(FoodTable[[#This Row],[TROŠAK PO PORCIJI]]*FoodTable[[#This Row],[PORCIJA ZA ODRASLE]],"") -> 0.36 Din. | J21: Napraviti veče uoči žurke
B22: Aranžirano povrće | C22: 30.00 Din. | D22: 4 | E22: 10 | F22: =(FoodTable[[#This Row],[PORCIJA ZA DECU]]*ChildrenTotal)+(FoodTable[[#This Row],[PORCIJA ZA ODRASLE]]*AdultTotal) -> 340 | G22: =IFERROR(FoodTable[[#This Row],[UKUPAN TROŠAK]]/FoodTable[[#This Row],[UKUPNO PORCIJA]],"") -> 0.09 Din. | H22: =IFERROR(FoodTable[[#This Row],[TROŠAK PO PORCIJI]]*FoodTable[[#This Row],[PORCIJA ZA DECU]],"") -> 0.35 Din. | I22: =IFERROR(FoodTable[[#This Row],[TROŠAK PO PORCIJI]]*FoodTable[[#This Row],[PORCIJA ZA ODRASLE]],"") -> 0.88 Din. | J22: Štapići šargarepe, celer, brokoli, karfiol, crvena i zelena paprika
B23: Loptice od sira | C23: 15.00 Din. | D23: 5 | E23: 10 | F23: =(FoodTable[[#This Row],[PORCIJA ZA DECU]]*ChildrenTotal)+(FoodTable[[#This Row],[PORCIJA ZA ODRASLE]]*AdultTotal) -> 360 | G23: =IFERROR(FoodTable[[#This Row],[UKUPAN TROŠAK]]/FoodTable[[#This Row],[UKUPNO PORCIJA]],"") -> 0.04 Din. | H23: =IFERROR(FoodTable[[#This Row],[TROŠAK PO PORCIJI]]*FoodTable[[#This Row],[PORCIJA ZA DECU]],"") -> 0.21 Din. | I23: =IFERROR(FoodTable[[#This Row],[TROŠAK PO PORCIJI]]*FoodTable[[#This Row],[PORCIJA ZA ODRASLE]],"") -> 0.42 Din. | J23: Aranžirano: krem sir, tvrdi sir sa orasima
B24: Krekeri | C24: 25.00 Din. | D24: 5 | E24: 10 | F24: =(FoodTable[[#This Row],[PORCIJA ZA DECU]]*ChildrenTotal)+(FoodTable[[#This Row],[PORCIJA ZA ODRASLE]]*AdultTotal) -> 360 | G24: =IFERROR(FoodTable[[#This Row],[UKUPAN TROŠAK]]/FoodTable[[#This Row],[UKUPNO PORCIJA]],"") -> 0.07 Din. | H24: =IFERROR(FoodTable[[#This Row],[TROŠAK PO PORCIJI]]*FoodTable[[#This Row],[PORCIJA ZA DECU]],"") -> 0.35 Din. | I24: =IFERROR(FoodTable[[#This Row],[TROŠAK PO PORCIJI]]*FoodTable[[#This Row],[PORCIJA ZA ODRASLE]],"") -> 0.69 Din. | J24: Aranžirano
B25: Ukupno | C25: =SUBTOTAL(109,FoodTable[UKUPAN TROŠAK]) -> 475.00 Din. | D25: =SUBTOTAL(109,FoodTable[PORCIJA ZA DECU]) -> 34.5 | E25: =SUBTOTAL(109,FoodTable[PORCIJA ZA ODRASLE]) -> 65.5 | F25: =SUBTOTAL(109,FoodTable[UKUPNO PORCIJA]) -> 2393 | G25: =SUBTOTAL(109,FoodTable[TROŠAK PO PORCIJI]) -> 6.92 Din. | H25: =SUBTOTAL(109,FoodTable[TROŠAK PO DETETU]) -> 7.25 Din. | I25: =SUBTOTAL(109,FoodTable[TROŠAK PO ODRASLOM]) -> 12.69 Din.

Sheet Druge osnovne potrepštine
B3: Druge osnovne potrepštine
B6: Oprema i zalihe | C6: Troškovi | D6: Kupljeno | E6: Beleške
B7: Iznajmljivanje sobe/sale | C7: 250.00 Din. | D7: Da
B8: Lanene prekrivke | C8: 30.00 Din. | D8: Da | E8: Kirija
B9: Stolovi i stolice | C9: 0.00 Din. | E9: Uključeno u najam sale
B10: Salvete za pića | C10: 25.00 Din.
B11: Salvete za večeru | C11: 20.00 Din. | E11: Kirija
B12: Servis za ručavanje | C12: 50.00 Din. | E12: Kirija
B13: Staklarija | C13: 25.00 Din. | E13: Kirija
B14: Ukupno | C14: =SUBTOTAL(109,Table1Budget[Troškovi]) -> 400.00 Din.
B17: Dekoracija | C17: Troškovi | D17: Kupljeno | E17: Beleške
B18: Baloni | C18: 25.00 Din.
B19: Boca helijuma | C19: 50.00 Din. | E19: Kirija
B20: Dekoracija za stolove | C20: 100.00 Din. | D20: Da | E20: Ukupno 10
B21: Staklene vaze | C21: 0.00 Din. | E21: Pozajmica od Sandre
B22: Ukupno | C22: =SUBTOTAL(109,Table2Budget[Troškovi]) -> 175.00 Din.
B25: Ostalo | C25: Troškovi | D25: Kupljeno | E25: Beleške
B26: Pozivnice | C26: 50.00 Din. | D26: Da
B27: Poštarina | C27: 60.00 Din. | D27: Da
B28: Fotograf | C28: 125.00 Din. | E28: 2 časa (14:00 – 16:00)
B29: Poklončići sa žurke | C29: 50.00 Din.
B30: Ukupno | C30: =SUBTOTAL(109,Table3Budget[Troškovi]) -> 285.00 Din.

Sheet Koord. mreža rasporeda sedenja
A1: Raspored sedenja
AH35: *1 kvadrat = približno 1 kvadratna stopa
A36: Beleške | T36: =" Total confirmed guests: "&ConfirmedGuests -> Total confirmed guests: 46
T37: Možete da koristite bilo koje od sledećih postavki za stolove:
U38: =ROUNDUP(ConfirmedGuests/6,0)&" okrugli stolovi 137.2 cm (6 mesta)" -> 8 okrugli stolovi 137.2 cm (6 mesta)
U39: =ROUNDUP(ConfirmedGuests/8,0) &" okrugli stolovi 152.4 cm (8 mesta)" -> 6 okrugli stolovi 152.4 cm (8 mesta)
U40: =ROUNDUP(ConfirmedGuests/10,0)&" okrugli stolovi 182.9 cm (10 mesta)" -> 5 okrugli stolovi 182.9 cm (10 mesta)
U41: =ROUNDUP(ConfirmedGuests/6,0)& "pravougaoni stolovi 76.2 cm x 182.9 cm (6 mesta)" -> 8pravougaoni stolovi 76.2 cm x 182.9 cm (6 mesta)
U42: =ROUNDUP(ConfirmedGuests/8,0)&" pravougaoni stolovi 76.2 cm x 243.8 cm (8 mesta)" -> 6 pravougaoni stolovi 76.2 cm x 243.8 cm (8 mesta)
T43: (Poželjna razdaljina među stolovima: 42 inča)
